[Event "MČR juniorů a juniorek v rapid šachu 2024"]
[Site "Hotel Fit Fun, Harrachov, Czech Republic"]
[Date "2024.09.22"]
[Round "7.8"]
[White "Stocek Martin"]
[Black "Rybacek Martin"]
[Result "1-0"]
[TimeControl "20+5"]
[WhiteFideId "380121"]
[BlackFideId "23739266"]
[WhiteElo "2021"]
[BlackElo "1831"]

1. d4 {[%clk 00:20:09]} {[%emt 16:01:23]} Nf6 {[%clk 00:20:04]} {[%emt
00:00:06]} 2. c4 {[%clk 00:20:12]} {[%emt 00:00:02]} g6 {[%clk 00:20:03]}
{[%emt 00:00:06]} 3. Nc3 {[%clk 00:20:16]} {[%emt 00:00:01]} d5 {[%clk
00:20:06]} {[%emt 00:00:03]} 4. Nf3 {[%clk 00:20:19]} {[%emt 00:00:01]} Bg7
{[%clk 00:20:01]} {[%emt 00:00:10]} 5. Qb3 {[%clk 00:20:22]} {[%emt 00:00:02]}
dxc4 {[%clk 00:19:57]} {[%emt 00:00:10]} 6. Qxc4 {[%clk 00:20:24]} {[%emt
00:00:02]} O-O {[%clk 00:19:58]} {[%emt 00:00:04]} 7. e4 {[%clk 00:20:19]}
{[%emt 00:00:11]} Nfd7 {[%clk 00:19:23]} {[%emt 00:00:39]} 8. Be2 {[%clk
00:19:56]} {[%emt 00:00:27]} Nb6 {[%clk 00:19:20]} {[%emt 00:00:08]} 9. Qd3
{[%clk 00:19:23]} {[%emt 00:00:39]} Bg4 {[%clk 00:18:47]} {[%emt 00:00:37]} 10.
Be3 {[%clk 00:19:10]} {[%emt 00:00:18]} Nc6 {[%clk 00:18:11]} {[%emt 00:00:42]}
11. Rd1 {[%clk 00:18:36]} {[%emt 00:00:38]} f5 {[%clk 00:14:21]} {[%emt
00:03:55]} 12. O-O {[%clk 00:06:03]} {[%emt 00:12:38]} f4 {[%clk 00:11:31]}
{[%emt 00:02:55]} 13. d5 {[%clk 00:03:43]} {[%emt 00:02:25]} fxe3 {[%clk
00:05:15]} {[%emt 00:06:21]} 14. dxc6 {[%clk 00:03:35]} {[%emt 00:00:13]} exf2+
{[%clk 00:05:16]} {[%emt 00:00:04]} 15. Rxf2 {[%clk 00:03:25]} {[%emt
00:00:15]} Qxd3 {[%clk 00:05:17]} {[%emt 00:00:04]} 16. Rxd3 {[%clk 00:03:15]}
{[%emt 00:00:16]} bxc6 {[%clk 00:05:20]} {[%emt 00:00:02]} 17. h3 {[%clk
00:03:04]} {[%emt 00:00:15]} Be6 {[%clk 00:05:09]} {[%emt 00:00:17]} 18. Nd4
{[%clk 00:00:54]} {[%emt 00:02:15]} Bc4 {[%clk 00:04:19]} {[%emt 00:00:54]} 19.
Rd1 {[%clk 00:00:40]} {[%emt 00:00:19]} c5 {[%clk 00:02:29]} {[%emt 00:01:55]}
20. Nc6 {[%clk 00:00:31]} {[%emt 00:00:13]} Rxf2 {[%clk 00:01:48]} {[%emt
00:00:46]} 21. Kxf2 {[%clk 00:00:34]} {[%emt 00:00:02]} e6 {[%clk 00:01:30]}
{[%emt 00:00:24]} 22. Na5 {[%clk 00:00:33]} {[%emt 00:00:06]} Rf8+ {[%clk
00:01:10]} {[%emt 00:00:24]} 23. Bf3 {[%clk 00:00:21]} {[%emt 00:00:18]} Bxc3
{[%clk 00:00:40]} {[%emt 00:00:35]} 24. bxc3 {[%clk 00:00:18]} {[%emt
00:00:08]} Bxa2 {[%clk 00:00:43]} {[%emt 00:00:01]} 25. Ra1 {[%clk 00:00:22]}
Bc4 {[%clk 00:00:42]} {[%emt 00:00:06]} 26. Nxc4 {[%clk 00:00:24]} {[%emt
00:00:04]} Nxc4 {[%clk 00:00:46]} 27. Rxa7 {[%clk 00:00:28]} {[%emt 00:00:01]}
c6 {[%clk 00:00:44]} {[%emt 00:00:07]} 28. Re7 {[%clk 00:00:25]} {[%emt
00:00:07]} Rf6 {[%clk 00:00:41]} {[%emt 00:00:08]} 29. Ke2 {[%clk 00:00:22]}
{[%emt 00:00:09]} Ne5 {[%clk 00:00:40]} {[%emt 00:00:06]} 30. Ke3 {[%clk
00:00:12]} {[%emt 00:00:15]} Kf8 {[%clk 00:00:42]} {[%emt 00:00:03]} 31. Rxh7
{[%clk 00:00:16]} {[%emt 00:00:01]} Rf7 {[%clk 00:00:32]} {[%emt 00:00:15]} 32.
Rh8+ {[%clk 00:00:18]} {[%emt 00:00:03]} Ke7 {[%clk 00:00:37]} 33. Ra8 {[%clk
00:00:20]} {[%emt 00:00:01]} Kd6 {[%clk 00:00:40]} {[%emt 00:00:03]} 34. Rd8+
{[%clk 00:00:18]} {[%emt 00:00:07]} Rd7 {[%clk 00:00:44]} {[%emt 00:00:01]} 35.
Rxd7+ Kxd7 {[%clk 00:00:48]} 36. Be2 {[%clk 00:00:22]} {[%emt 00:00:03]} Kd6
{[%clk 00:00:46]} {[%emt 00:00:07]} 37. g3 {[%clk 00:00:25]} {[%emt 00:00:02]}
c4 {[%clk 00:00:41]} {[%emt 00:00:10]} 38. Kd4 {[%clk 00:00:19]} {[%emt
00:00:11]} c5+ {[%clk 00:00:43]} {[%emt 00:00:03]} 39. Ke3 {[%clk 00:00:23]}
Ke7 {[%clk 00:00:45]} {[%emt 00:00:03]} 40. Kf4 {[%clk 00:00:23]} {[%emt
00:00:05]} Kf6 {[%clk 00:00:49]} {[%emt 00:00:02]} 41. h4 {[%clk 00:00:26]}
{[%emt 00:00:02]} Nd3+ {[%clk 00:00:50]} {[%emt 00:00:05]} 42. Ke3 {[%clk
00:00:26]} {[%emt 00:00:04]} Nb2 {[%clk 00:00:43]} {[%emt 00:00:12]} 43. g4
{[%clk 00:00:25]} {[%emt 00:00:07]} e5 {[%clk 00:00:44]} {[%emt 00:00:05]} 44.
Kd2 {[%clk 00:00:25]} {[%emt 00:00:05]} Na4 {[%clk 00:00:20]} {[%emt 00:00:29]}
45. Bxc4 {[%clk 00:00:27]} {[%emt 00:00:02]} Nb6 {[%clk 00:00:24]} {[%emt
00:00:01]} 46. Bd5 {[%clk 00:00:14]} {[%emt 00:00:18]} Nd7 {[%clk 00:00:20]}
{[%emt 00:00:10]} 47. Bc6 {[%clk 00:00:17]} {[%emt 00:00:02]} Nb6 {[%clk
00:00:20]} {[%emt 00:00:05]} 48. Bb5 {[%clk 00:00:19]} {[%emt 00:00:03]} Nc8
{[%clk 00:00:23]} {[%emt 00:00:02]} 49. Kc2 {[%clk 00:00:16]} {[%emt 00:00:09]}
Nd6 {[%clk 00:00:26]} 50. Bd3 {[%clk 00:00:20]} c4 {[%clk 00:00:17]} {[%emt
00:00:15]} 51. Be2 {[%clk 00:00:19]} {[%emt 00:00:05]} Nxe4 {[%clk 00:00:20]}
{[%emt 00:00:02]} 52. Bxc4 {[%clk 00:00:19]} {[%emt 00:00:05]} Nf2 {[%clk
00:00:23]} {[%emt 00:00:03]} 53. Be2 {[%clk 00:00:19]} {[%emt 00:00:04]} e4
{[%clk 00:00:27]} {[%emt 00:00:02]} 54. Kd2 {[%clk 00:00:19]} {[%emt 00:00:04]}
Ke5 {[%clk 00:00:31]} {[%emt 00:00:01]} 55. Ke3 {[%clk 00:00:20]} {[%emt
00:00:04]} Nh3 {[%clk 00:00:33]} {[%emt 00:00:04]} 56. h5 {[%clk 00:00:14]}
{[%emt 00:00:11]} gxh5 {[%clk 00:00:36]} {[%emt 00:00:02]} 57. gxh5 {[%clk
00:00:18]} Ng5 {[%clk 00:00:40]} {[%emt 00:00:01]} 58. Bg4 {[%clk 00:00:17]}
{[%emt 00:00:06]} Nf7 {[%clk 00:00:39]} {[%emt 00:00:07]} 59. c4 {[%clk
00:00:12]} {[%emt 00:00:09]} Nd6 {[%clk 00:00:43]} 60. c5 {[%clk 00:00:15]}
{[%emt 00:00:03]} Nc4+ {[%clk 00:00:47]} 61. Ke2 {[%clk 00:00:17]} {[%emt
00:00:03]} Kd5 {[%clk 00:00:44]} {[%emt 00:00:08]} 62. h6 {[%clk 00:00:13]}
{[%emt 00:00:08]} Ne5 {[%clk 00:00:47]} {[%emt 00:00:02]} 63. Bh5 {[%clk
00:00:17]} {[%emt 00:00:01]} 1-0



[ePGN "0.1;DGT LiveChess/2.2.6"]

[Event "MČR juniorů a juniorek v rapid šachu 2024"]
[Site "Hotel Fit Fun, Harrachov, Czech Republic"]
[Date "2024.09.22"]
[Round "7.9"]
[White "Bezdek Tomas"]
[Black "Hozda Max"]
[Result "0-1"]
[TimeControl "20+5"]
[WhiteFideId "23733551"]
[BlackFideId "23725958"]
[WhiteElo "1973"]
[BlackElo "1939"]

1. d4 {[%clk 00:19:59]} {[%emt 00:00:09]} Nf6 {[%clk 00:18:43]} {[%emt
00:01:28]} 2. c4 {[%clk 00:20:00]} {[%emt 00:00:05]} e6 {[%clk 00:18:38]}
{[%emt 00:00:03]} 3. g3 {[%clk 00:19:58]} {[%emt 00:00:12]} Bb4+ {[%clk
00:17:38]} {[%emt 00:01:06]} 4. Nd2 {[%clk 00:19:58]} {[%emt 00:00:04]} d5
{[%clk 00:17:13]} {[%emt 00:00:30]} 5. Bg2 {[%clk 00:19:58]} {[%emt 00:00:05]}
O-O {[%clk 00:17:05]} {[%emt 00:00:14]} 6. Ngf3 {[%clk 00:19:58]} {[%emt
00:00:05]} b6 {[%clk 00:13:42]} {[%emt 00:03:28]} 7. cxd5 {[%clk 00:19:51]}
{[%emt 00:00:11]} exd5 {[%clk 00:13:13]} {[%emt 00:00:35]} 8. O-O {[%clk
00:19:53]} {[%emt 00:00:02]} Re8 {[%clk 00:12:53]} {[%emt 00:00:26]} 9. Ne5
{[%clk 00:18:34]} {[%emt 00:01:23]} Bb7 {[%clk 00:12:54]} {[%emt 00:00:05]} 10.
Ndf3 {[%clk 00:18:33]} {[%emt 00:00:06]} Ne4 {[%clk 00:12:24]} {[%emt
00:00:34]} 11. Qc2 {[%clk 00:17:28]} {[%emt 00:01:10]} Bd6 {[%clk 00:11:51]}
{[%emt 00:00:39]} 12. Be3 {[%clk 00:15:18]} {[%emt 00:02:15]} c5 {[%clk
00:10:39]} {[%emt 00:01:17]} 13. Nd3 {[%clk 00:11:36]} {[%emt 00:03:47]} c4
{[%clk 00:09:10]} {[%emt 00:01:34]} 14. Nf4 {[%clk 00:11:00]} {[%emt 00:00:41]}
Nd7 {[%clk 00:07:27]} {[%emt 00:01:48]} 15. Nd2 {[%clk 00:09:17]} {[%emt
00:01:48]} Ndf6 {[%clk 00:06:58]} {[%emt 00:00:34]} 16. f3 {[%clk 00:07:37]}
{[%emt 00:01:45]} Nxd2 {[%clk 00:06:50]} {[%emt 00:00:13]} 17. Bxd2 {[%clk
00:07:41]} Qe7 {[%clk 00:03:06]} {[%emt 00:03:49]} 18. Rfe1 {[%clk 00:06:36]}
{[%emt 00:01:10]} Rac8 {[%clk 00:02:08]} {[%emt 00:01:03]} 19. Nh3 {[%clk
00:05:39]} {[%emt 00:01:02]} Bb4 {[%clk 00:01:14]} {[%emt 00:00:59]} 20. e3
{[%clk 00:03:32]} {[%emt 00:02:12]} b5 {[%clk 00:00:42]} {[%emt 00:00:37]} 21.
a3 {[%clk 00:03:29]} {[%emt 00:00:09]} Bxd2 {[%clk 00:00:41]} {[%emt 00:00:06]}
22. Qxd2 {[%clk 00:03:33]} Qc7 {[%clk 00:00:24]} {[%emt 00:00:23]} 23. Nf2
{[%clk 00:03:26]} {[%emt 00:00:12]} a5 {[%clk 00:00:15]} {[%emt 00:00:14]} 24.
e4 {[%clk 00:02:40]} {[%emt 00:00:50]} dxe4 {[%clk 00:00:19]} {[%emt 00:00:01]}
25. fxe4 {[%clk 00:01:55]} {[%emt 00:00:51]} Qb6 {[%clk 00:00:09]} {[%emt
00:00:14]} 26. d5 {[%clk 00:01:00]} {[%emt 00:01:00]} b4 {[%clk 00:00:09]}
{[%emt 00:00:05]} 27. axb4 {[%clk 00:00:58]} {[%emt 00:00:07]} axb4 {[%clk
00:00:13]} {[%emt 00:00:01]} 28. Rac1 {[%clk 00:00:28]} {[%emt 00:00:35]} Ng4
{[%clk 00:00:08]} {[%emt 00:00:11]} 29. h3 {[%clk 00:00:23]} {[%emt 00:00:09]}
Ne5 {[%clk 00:00:12]} {[%emt 00:00:01]} 30. Kh2 {[%clk 00:00:12]} {[%emt
00:00:17]} Qd6 {[%clk 00:00:09]} {[%emt 00:00:08]} 31. Qf4 {[%clk 00:00:11]}
{[%emt 00:00:05]} f6 {[%clk 00:00:09]} {[%emt 00:00:05]} 32. Red1 {[%clk
00:00:10]} {[%emt 00:00:06]} c3 {[%clk 00:00:12]} {[%emt 00:00:02]} 33. bxc3
{[%clk 00:00:13]} {[%emt 00:00:02]} Rxc3 {[%clk 00:00:15]} {[%emt 00:00:02]} 34.
Rxc3 {[%clk 00:00:14]} {[%emt 00:00:05]} bxc3 {[%clk 00:00:19]} {[%emt
00:00:01]} 35. Qe3 {[%clk 00:00:17]} {[%emt 00:00:02]} Rc8 {[%clk 00:00:20]}
{[%emt 00:00:04]} 36. Rc1 {[%clk 00:00:21]} Qc7 {[%clk 00:00:09]} {[%emt
00:00:16]} 37. Bf1 {[%clk 00:00:16]} {[%emt 00:00:10]} c2 {[%clk 00:00:08]}
{[%emt 00:00:06]} 38. Nd3 {[%clk 00:00:15]} {[%emt 00:00:05]} Qc3 {[%clk
00:00:11]} {[%emt 00:00:03]} 39. Qe2 {[%clk 00:00:09]} {[%emt 00:00:11]} Ba6
{[%clk 00:00:13]} {[%emt 00:00:03]} 40. Rxc2 {[%clk 00:00:10]} {[%emt
00:00:04]} Qxc2 {[%clk 00:00:16]} {[%emt 00:00:01]} 0-1



[ePGN "0.1;DGT LiveChess/2.2.6"]

[Event "MČR juniorů a juniorek v rapid šachu 2024"]
[Site "Hotel Fit Fun, Harrachov, Czech Republic"]
[Date "2024.09.22"]
[Round "8.1"]
[White "Skypala Ondrej"]
[Black "Lihotsky Lukas"]
[Result "1-0"]
[TimeControl "20+5"]
[WhiteFideId "366285"]
[BlackFideId "23727004"]
[WhiteElo "2033"]
[BlackElo "1975"]

1. c4 {[%clk 00:20:00]} e6 {[%clk 00:20:05]} {[%emt 00:00:13]} 2. Nf3 {[%clk
00:20:03]} {[%emt 00:00:02]} d5 {[%clk 00:20:09]} {[%emt 00:00:01]} 3. g3
{[%clk 00:20:03]} {[%emt 00:00:05]} Nf6 {[%clk 00:20:12]} 4. Bg2 {[%clk
00:20:07]} dxc4 {[%clk 00:20:16]} {[%emt 00:00:02]} 5. O-O {[%clk 00:20:10]}
{[%emt 00:00:02]} a6 {[%clk 00:20:17]} {[%emt 00:00:05]} 6. Na3 {[%clk
00:20:09]} {[%emt 00:00:06]} c5 {[%clk 00:18:42]} {[%emt 00:01:39]} 7. Nxc4
{[%clk 00:19:55]} {[%emt 00:00:20]} b5 {[%clk 00:16:30]} {[%emt 00:02:17]} 8.
Nce5 {[%clk 00:19:56]} {[%emt 00:00:03]} Ra7 {[%clk 00:14:41]} {[%emt
00:01:55]} 9. a4 {[%clk 00:19:28]} {[%emt 00:00:34]} b4 {[%clk 00:14:35]}
{[%emt 00:00:10]} 10. d4 {[%clk 00:19:20]} {[%emt 00:00:13]} Bb7 {[%clk
00:13:36]} {[%emt 00:01:04]} 11. dxc5 {[%clk 00:18:20]} {[%emt 00:01:05]} Qxd1
{[%clk 00:13:27]} {[%emt 00:00:14]} 12. Rxd1 {[%clk 00:18:24]} {[%emt
00:00:01]} Bxc5 {[%clk 00:13:11]} {[%emt 00:00:21]} 13. Bg5 {[%clk 00:18:28]}
O-O {[%clk 00:11:33]} {[%emt 00:01:43]} 14. Nd3 {[%clk 00:15:29]} {[%emt
00:03:04]} Be7 {[%clk 00:10:51]} {[%emt 00:00:46]} 15. Be3 {[%clk 00:15:32]}
{[%emt 00:00:01]} Ra8 {[%clk 00:10:55]} {[%emt 00:00:01]} 16. Rac1 {[%clk
00:15:36]} Nbd7 {[%clk 00:04:21]} {[%emt 00:06:39]} 17. Rc7 {[%clk 00:14:13]}
{[%emt 00:01:28]} Bd5 {[%clk 00:04:11]} {[%emt 00:00:15]} 18. Rdc1 {[%clk
00:14:04]} {[%emt 00:00:15]} Bd6 {[%clk 00:03:59]} {[%emt 00:00:17]} 19. Ra7
{[%clk 00:14:07]} {[%emt 00:00:02]} Rxa7 {[%clk 00:03:50]} {[%emt 00:00:14]} 20.
Bxa7 {[%clk 00:14:11]} {[%emt 00:00:02]} h6 {[%clk 00:01:44]} {[%emt 00:02:11]}
21. Bd4 {[%clk 00:13:26]} {[%emt 00:00:50]} Re8 {[%clk 00:01:29]} {[%emt
00:00:20]} 22. Nfe5 {[%clk 00:13:17]} {[%emt 00:00:14]} Nxe5 {[%clk 00:01:27]}
{[%emt 00:00:07]} 23. Nxe5 {[%clk 00:13:11]} {[%emt 00:00:11]} Bxg2 {[%clk
00:01:18]} {[%emt 00:00:14]} 24. Kxg2 {[%clk 00:13:14]} {[%emt 00:00:02]} Bxe5
{[%clk 00:00:57]} {[%emt 00:00:26]} 25. Bxe5 {[%clk 00:13:17]} {[%emt
00:00:02]} Rd8 {[%clk 00:00:59]} {[%emt 00:00:04]} 26. Rc4 {[%clk 00:12:28]}
{[%emt 00:00:54]} Rd2 {[%clk 00:00:42]} {[%emt 00:00:21]} 27. Rxb4 {[%clk
00:11:48]} {[%emt 00:00:46]} Rxe2 {[%clk 00:00:44]} {[%emt 00:00:03]} 28. Bd4
{[%clk 00:11:20]} {[%emt 00:00:33]} e5 {[%clk 00:00:29]} {[%emt 00:00:21]} 29.
Be3 {[%clk 00:11:06]} {[%emt 00:00:19]} Nd5 {[%clk 00:00:18]} {[%emt 00:00:15]}
30. Rb8+ {[%clk 00:11:10]} {[%emt 00:00:01]} Kh7 {[%clk 00:00:21]} {[%emt
00:00:02]} 31. Bc5 {[%clk 00:10:35]} {[%emt 00:00:39]} Rc2 {[%clk 00:00:18]}
{[%emt 00:00:09]} 32. b4 {[%clk 00:10:34]} {[%emt 00:00:06]} a5 {[%clk
00:00:13]} {[%emt 00:00:10]} 33. Bd6 {[%clk 00:10:25]} {[%emt 00:00:14]} axb4
{[%clk 00:00:16]} {[%emt 00:00:02]} 34. Rb5 {[%clk 00:10:03]} {[%emt 00:00:27]}
Ne3+ {[%clk 00:00:11]} {[%emt 00:00:10]} 35. Kf3 {[%clk 00:09:52]} {[%emt
00:00:16]} Nd1 {[%clk 00:00:10]} {[%emt 00:00:07]} 36. Bxb4 {[%clk 00:09:38]}
{[%emt 00:00:20]} Rxf2+ {[%clk 00:00:13]} {[%emt 00:00:01]} 37. Ke4 {[%clk
00:09:34]} {[%emt 00:00:08]} Ra2 {[%clk 00:00:14]} {[%emt 00:00:05]} 38. a5
{[%clk 00:09:34]} {[%emt 00:00:05]} Nb2 {[%clk 00:00:17]} 39. Rb7 {[%clk
00:09:04]} {[%emt 00:00:36]} f5+ {[%clk 00:00:19]} {[%emt 00:00:04]} 40. Kxf5
{[%clk 00:08:53]} {[%emt 00:00:15]} Nd3 {[%clk 00:00:16]} {[%emt 00:00:08]} 41.
Bc3 {[%clk 00:08:23]} {[%emt 00:00:35]} Ra3 {[%clk 00:00:16]} {[%emt 00:00:05]}
42. Rc7 {[%clk 00:08:10]} {[%emt 00:00:17]} Ra2 {[%clk 00:00:12]} {[%emt
00:00:09]} 43. Ke4 {[%clk 00:08:01]} {[%emt 00:00:14]} Nf2+ {[%clk 00:00:14]}
{[%emt 00:00:03]} 44. Kxe5 {[%clk 00:08:00]} {[%emt 00:00:06]} Ng4+ {[%clk
00:00:12]} {[%emt 00:00:06]} 45. Kf4 {[%clk 00:08:03]} {[%emt 00:00:02]} Ra4+
{[%clk 00:00:10]} {[%emt 00:00:08]} 46. Kf5 {[%clk 00:07:43]} {[%emt 00:00:25]}
Ne3+ {[%clk 00:00:11]} {[%emt 00:00:04]} 47. Ke6 {[%clk 00:07:42]} {[%emt
00:00:06]} Re4+ {[%clk 00:00:13]} {[%emt 00:00:02]} 48. Be5 {[%clk 00:07:41]}
{[%emt 00:00:06]} Ng4 {[%clk 00:00:10]} {[%emt 00:00:09]} 49. Rxg7+ {[%clk
00:07:44]} {[%emt 00:00:02]} Kh8 {[%clk 00:00:14]} {[%emt 00:00:01]} 50. Rxg4+
{[%clk 00:07:47]} {[%emt 00:00:02]} 1-0



[ePGN "0.1;DGT LiveChess/2.2.6"]

[Event "MČR juniorů a juniorek v rapid šachu 2024"]
[Site "Hotel Fit Fun, Harrachov, Czech Republic"]
[Date "2024.09.22"]
[Round "8.10"]
[White "Vilimek Vit"]
[Black "Housa Vojtech"]
[Result "1-0"]
[TimeControl "20+5"]
[WhiteFideId "23718218"]
[BlackFideId "23736364"]
[WhiteElo "2025"]
[BlackElo "1691"]

1. e4 {[%clk 00:20:06]} {[%emt 00:00:02]} c5 {[%clk 00:20:09]} {[%emt
00:00:02]} 2. b4 {[%clk 00:20:10]} cxb4 {[%clk 00:20:06]} {[%emt 00:00:09]} 3.
a3 {[%clk 00:20:15]} {[%emt 00:00:01]} d5 {[%clk 00:20:09]} {[%emt 00:00:01]} 4.
exd5 {[%clk 00:20:19]} Nf6 {[%clk 00:20:12]} {[%emt 00:00:02]} 5. axb4 {[%clk
00:20:23]} Nxd5 {[%clk 00:20:13]} {[%emt 00:00:03]} 6. b5 {[%clk 00:20:27]} e5
{[%clk 00:19:31]} {[%emt 00:00:47]} 7. Bb2 {[%clk 00:20:14]} {[%emt 00:00:18]}
Qc7 {[%clk 00:19:06]} {[%emt 00:00:30]} 8. Nf3 {[%clk 00:20:06]} {[%emt
00:00:12]} Bd6 {[%clk 00:19:02]} {[%emt 00:00:10]} 9. Na3 {[%clk 00:19:59]}
{[%emt 00:00:13]} Bg4 {[%clk 00:18:38]} {[%emt 00:00:29]} 10. h3 {[%clk
00:19:42]} {[%emt 00:00:21]} Bh5 {[%clk 00:18:25]} {[%emt 00:00:18]} 11. Bd3
{[%clk 00:19:33]} {[%emt 00:00:13]} Nf6 {[%clk 00:17:50]} {[%emt 00:00:41]} 12.
b6 {[%clk 00:19:02]} {[%emt 00:00:36]} Qd7 {[%clk 00:16:26]} {[%emt 00:01:28]}
13. Nc4 {[%clk 00:17:57]} {[%emt 00:01:10]} Nc6 {[%clk 00:15:44]} {[%emt
00:00:47]} 14. O-O {[%clk 00:16:28]} {[%emt 00:01:33]} Bxf3 {[%clk 00:14:59]}
{[%emt 00:00:52]} 15. Qxf3 {[%clk 00:16:22]} {[%emt 00:00:10]} Bc5 {[%clk
00:14:57]} {[%emt 00:00:07]} 16. Bxe5 {[%clk 00:16:06]} {[%emt 00:00:21]} Nxe5
{[%clk 00:13:54]} {[%emt 00:01:09]} 17. Nxe5 {[%clk 00:16:08]} {[%emt
00:00:02]} Qd5 {[%clk 00:13:24]} {[%emt 00:00:36]} 18. Bb5+ {[%clk 00:16:06]}
{[%emt 00:00:07]} Ke7 {[%clk 00:12:48]} {[%emt 00:00:41]} 19. Rfe1 {[%clk
00:15:54]} {[%emt 00:00:17]} Qxf3 {[%clk 00:12:40]} {[%emt 00:00:13]} 20. Nxf3+
{[%clk 00:15:57]} {[%emt 00:00:02]} Kf8 {[%clk 00:11:27]} {[%emt 00:01:18]} 21.
bxa7 {[%clk 00:15:54]} {[%emt 00:00:08]} Rxa7 {[%clk 00:11:27]} {[%emt
00:00:06]} 22. Rxa7 {[%clk 00:15:56]} {[%emt 00:00:03]} Bxa7 {[%clk 00:11:30]}
{[%emt 00:00:02]} 23. Ne5 {[%clk 00:15:16]} {[%emt 00:00:44]} Bb8 {[%clk
00:10:56]} {[%emt 00:00:40]} 24. Ng4 {[%clk 00:15:09]} {[%emt 00:00:12]} Bd6
{[%clk 00:09:46]} {[%emt 00:01:16]} 25. Nxf6 {[%clk 00:14:29]} {[%emt
00:00:44]} gxf6 {[%clk 00:09:50]} 26. Re4 {[%clk 00:14:26]} {[%emt 00:00:08]}
h5 {[%clk 00:09:38]} {[%emt 00:00:17]} 27. h4 {[%clk 00:13:44]} {[%emt
00:00:47]} Kg7 {[%clk 00:09:35]} {[%emt 00:00:08]} 28. Be2 {[%clk 00:13:33]}
{[%emt 00:00:16]} Ra8 {[%clk 00:09:33]} {[%emt 00:00:07]} 29. g3 {[%clk
00:13:36]} {[%emt 00:00:02]} Ra5 {[%clk 00:09:32]} {[%emt 00:00:06]} 30. Rd4
{[%clk 00:13:32]} {[%emt 00:00:09]} Bc5 {[%clk 00:08:12]} {[%emt 00:01:26]} 31.
Rd7 {[%clk 00:13:25]} {[%emt 00:00:11]} Kg6 {[%clk 00:07:26]} {[%emt 00:00:50]}
32. Rxb7 {[%clk 00:12:59]} {[%emt 00:00:31]} Ra1+ {[%clk 00:07:23]} {[%emt
00:00:09]} 33. Kg2 {[%clk 00:13:02]} {[%emt 00:00:01]} Re1 {[%clk 00:07:02]}
{[%emt 00:00:26]} 34. Bc4 {[%clk 00:12:58]} {[%emt 00:00:09]} Re7 {[%clk
00:06:58]} {[%emt 00:00:09]} 35. Rxe7 {[%clk 00:12:57]} {[%emt 00:00:06]} Bxe7
{[%clk 00:07:02]} 36. Kf3 {[%clk 00:13:01]} {[%emt 00:00:02]} f5 {[%clk
00:07:03]} {[%emt 00:00:05]} 37. d4 {[%clk 00:12:57]} {[%emt 00:00:08]} Bd6
{[%clk 00:06:49]} {[%emt 00:00:19]} 38. Be2 {[%clk 00:12:44]} {[%emt 00:00:17]}
f4 {[%clk 00:06:21]} {[%emt 00:00:34]} 39. gxf4 {[%emt 00:00:09]} Kf5 40. Bd3+
{[%clk 00:12:44]} Kf6 {[%clk 00:06:24]} {[%emt 00:00:07]} 41. Ke4 {[%clk
00:12:47]} {[%emt 00:00:02]} 1-0



[ePGN "0.1;DGT LiveChess/2.2.6"]

[Event "MČR juniorů a juniorek v rapid šachu 2024"]
[Site "Hotel Fit Fun, Harrachov, Czech Republic"]
[Date "2024.09.22"]
[Round "8.11"]
[White "Rybacek Martin"]
[Black "Steinbauer Sebastian"]
[Result "0-1"]
[TimeControl "20+5"]
[WhiteFideId "23739266"]
[BlackFideId "399272"]
[WhiteElo "1831"]
[BlackElo "2062"]

1. Nf3 {[%clk 00:20:08]} {[%emt 00:00:02]} Nf6 {[%clk 00:20:03]} {[%emt
00:00:07]} 2. g3 {[%clk 00:20:12]} {[%emt 00:00:01]} g6 {[%clk 00:20:07]} 3.
Bg2 {[%clk 00:20:15]} {[%emt 00:00:01]} Bg7 {[%clk 00:20:11]} 4. O-O {[%clk
00:20:18]} {[%emt 00:00:02]} e6 {[%clk 00:20:00]} {[%emt 00:00:16]} 5. c4
{[%clk 00:20:06]} {[%emt 00:00:16]} c6 {[%clk 00:19:59]} {[%emt 00:00:06]} 6.
d4 {[%clk 00:19:56]} {[%emt 00:00:16]} O-O {[%clk 00:19:51]} {[%emt 00:00:13]}
7. Nc3 {[%clk 00:19:34]} {[%emt 00:00:27]} d5 {[%clk 00:19:55]} {[%emt
00:00:01]} 8. b3 {[%clk 00:19:15]} {[%emt 00:00:23]} a6 {[%clk 00:19:41]}
{[%emt 00:00:19]} 9. Bf4 {[%clk 00:18:54]} {[%emt 00:00:25]} b5 {[%clk
00:19:08]} {[%emt 00:00:39]} 10. Qd2 {[%clk 00:17:52]} {[%emt 00:01:07]} Re8
{[%clk 00:18:58]} {[%emt 00:00:15]} 11. Ne5 {[%clk 00:17:27]} {[%emt 00:00:30]}
Bb7 {[%clk 00:18:28]} {[%emt 00:00:35]} 12. a3 {[%clk 00:14:37]} {[%emt
00:02:55]} Nbd7 {[%clk 00:17:48]} {[%emt 00:00:45]} 13. e4 {[%clk 00:14:05]}
{[%emt 00:00:37]} dxe4 {[%clk 00:16:50]} {[%emt 00:01:03]} 14. Nxe4 {[%clk
00:14:00]} {[%emt 00:00:10]} Nxe4 {[%clk 00:16:52]} {[%emt 00:00:03]} 15. Bxe4
{[%clk 00:14:02]} {[%emt 00:00:03]} Nxe5 {[%clk 00:16:55]} {[%emt 00:00:02]} 16.
dxe5 {[%clk 00:13:41]} {[%emt 00:00:26]} Qxd2 {[%clk 00:16:53]} {[%emt
00:00:07]} 17. Bxd2 {[%clk 00:13:45]} {[%emt 00:00:01]} Bxe5 {[%clk 00:16:53]}
{[%emt 00:00:05]} 18. Rad1 {[%clk 00:13:36]} {[%emt 00:00:14]} f5 {[%clk
00:15:02]} {[%emt 00:01:57]} 19. Bf3 {[%clk 00:13:27]} {[%emt 00:00:14]} Bd4
{[%clk 00:14:36]} {[%emt 00:00:31]} 20. Ba5 {[%clk 00:12:19]} {[%emt 00:01:13]}
e5 {[%clk 00:14:27]} {[%emt 00:00:14]} 21. Bg2 {[%clk 00:12:07]} {[%emt
00:00:17]} Re7 {[%clk 00:13:54]} {[%emt 00:00:37]} 22. Kh1 {[%clk 00:11:24]}
{[%emt 00:00:49]} bxc4 {[%clk 00:13:14]} {[%emt 00:00:45]} 23. bxc4 {[%clk
00:11:28]} {[%emt 00:00:02]} c5 {[%clk 00:13:17]} {[%emt 00:00:02]} 24. Rb1
{[%clk 00:11:20]} {[%emt 00:00:13]} Rb8 {[%clk 00:12:35]} {[%emt 00:00:47]} 25.
Kg1 {[%clk 00:11:14]} {[%emt 00:00:11]} e4 {[%clk 00:11:18]} {[%emt 00:01:21]}
26. Rb3 {[%clk 00:10:51]} {[%emt 00:00:29]} e3 {[%clk 00:10:58]} {[%emt
00:00:25]} 27. Bxb7 {[%clk 00:09:32]} {[%emt 00:01:23]} exf2+ {[%clk 00:10:52]}
{[%emt 00:00:11]} 28. Kg2 {[%clk 00:09:31]} {[%emt 00:00:06]} Rexb7 {[%clk
00:10:21]} {[%emt 00:00:36]} 29. Rxb7 {[%clk 00:07:59]} {[%emt 00:01:37]} Rxb7
{[%clk 00:10:24]} {[%emt 00:00:03]} 30. Bd8 {[%clk 00:07:36]} {[%emt 00:00:27]}
Rb3 {[%clk 00:10:00]} {[%emt 00:00:30]} 31. a4 {[%clk 00:07:40]} {[%emt
00:00:01]} Rb4 {[%clk 00:10:03]} {[%emt 00:00:01]} 0-1



[ePGN "0.1;DGT LiveChess/2.2.6"]